fUSD/lending_fUSD_20250209
["ID","MTS","AMOUNT","RATE_DAILY","PERIOD"]
[352390717,1739071858776,-4828.19,0.0001074,2]
[352390718,1739071858786,-573.85,0.0001074,2]
[352390719,1739071858796,-513.58264281,0.0001074,2]
[352390720,1739071858806,-500.0,0.0001074,2]
[352390721,1739071858816,-500.0,0.0001074,2]
[352390722,1739071858826,-1169.31,0.0001074,2]
[352390723,1739071858836,-500.0,0.0001074,2]
[352390724,1739071858846,-886.11,0.0001074,2]
[352390725,1739071858857,-917.97,0.0001074,2]
[352390726,1739071858867,-2052.96,0.0001074,2]
[352390727,1739071858877,-500.0,0.0001074,2]
[352390728,1739071858887,-500.0,0.0001074,2]
[352390729,1739071858896,-541.12,0.0001074,2]
[352390730,1739071858906,-500.0,0.00010741,2]
[352390731,1739071858915,-500.0,0.00010741,2]
[352390732,1739071858925,-500.0,0.00010741,2]
[352390733,1739071858935,-500.0,0.00010741,2]
[352390734,1739071858944,-500.0,0.00010741,2]
[352390735,1739071858953,-500.0,0.00010741,2]
[352390736,1739071858963,-500.0,0.00010741,2]
[352390737,1739071858973,-500.0,0.00010741,2]
[352390738,1739071858983,-500.0,0.00010741,2]
[352390739,1739071858992,-500.0,0.00010741,2]
[352390740,1739071859002,-500.0,0.00010741,2]
[352390741,1739071859011,-530.6,0.00010741,2]
[352390742,1739071859024,-500.0,0.00010741,2]
[352390743,1739071859034,-500.0,0.00010741,2]
[352390744,1739071859043,-500.0,0.00010741,2]
[352390745,1739071859053,-500.0,0.00010741,2]
[352390746,1739071859063,-551.13,0.00010741,2]
[352390747,1739071859072,-500.0,0.00010741,2]
[352390748,1739071859083,-500.0,0.00010741,2]
[352390749,1739071859093,-843.72,0.00010741,2]
[352390750,1739071859102,-951.06,0.00010741,2]
[352390751,1739071859115,-500.0,0.00010741,2]
[352390752,1739071859124,-500.0,0.00010741,2]
[352390753,1739071859135,-500.0,0.00010741,2]
[352390754,1739071859145,-500.0,0.00010741,2]
[352390755,1739071859156,-500.0,0.00010741,2]
[352390756,1739071859166,-523.63,0.00010741,2]
[352390757,1739071859175,-500.0,0.00010741,2]
[352390758,1739071859186,-599.35,0.00010741,2]
[352390759,1739071859195,-500.0,0.00010741,2]
[352390760,1739071859205,-500.0,0.00010741,2]
[352390761,1739071859215,-500.0,0.00010741,2]
[352390762,1739071859225,-575.48,0.00010741,2]
[352390763,1739071859234,-500.0,0.00010741,2]
[352390764,1739071859244,-500.0,0.00010741,2]
[352390765,1739071859254,-557.04,0.00010741,2]
[352390766,1739071859263,-500.0,0.00010741,2]
[352390767,1739071859273,-500.0,0.00010741,2]
[352390768,1739071859282,-500.0,0.00010741,2]
[352390769,1739071859293,-657.45,0.00010741,2]
[352390770,1739071859303,-500.0,0.00010741,2]
[352390771,1739071859313,-553.28,0.00010741,2]
[352390772,1739071859323,-506.47,0.00010741,2]
[352390773,1739071859334,-500.0,0.00010741,2]
[352390774,1739071859344,-500.0,0.00010741,2]
[352390775,1739071859355,-343.36725516,0.00010741,2]
[352390776,1739071859365,-500.0,0.00010741,2]
[352390777,1739071859375,-343.96,0.00010851,2]
[352390778,1739071859385,-250.0,0.0001086,2]
[352390779,1739071859395,-1000.0,0.00010873,2]
[352390780,1739071859404,-500.0,0.00010877,2]
[352390781,1739071859414,-500.0,0.00010877,2]
[352390782,1739071859424,-500.0,0.00010877,2]
[352390783,1739071859433,-289.812615,0.00010877,2]
[352390784,1739071859443,-319.505376,0.00010877,2]
[352390785,1739071859454,-500.0,0.00010877,2]
[352390786,1739071859463,-500.0,0.00010877,2]
[352390787,1739071859473,-628.43,0.00010877,2]
[352390788,1739071859482,-1055.42,0.00010877,2]
[352390789,1739071859492,-755.58,0.00010877,2]
[352390790,1739071859502,-776.18,0.00010877,2]
[352390791,1739071859512,-500.0,0.00010877,2]
[352390792,1739071859522,-500.0,0.00010877,2]
[352390793,1739071859531,-500.0,0.00010877,2]
[352390794,1739071859542,-500.0,0.00010877,2]
[352390795,1739071859552,-610.57,0.00010877,2]
[352390796,1739071859563,-500.0,0.00010877,2]
[352390797,1739071859572,-500.0,0.00010877,2]
[352390798,1739071859583,-500.0,0.00010877,2]
[352390799,1739071859593,-500.0,0.00010877,2]
[352390800,1739071859602,-525.23541246,0.00010877,2]
[352390801,1739071859612,-500.0,0.00010877,2]
[352390802,1739071859622,-561.7,0.00010877,2]
[352390803,1739071859632,-676.24,0.00010877,2]
[352390804,1739071859641,-500.0,0.00010877,2]
[352390805,1739071859650,-992.36,0.00010877,2]
[352390806,1739071859660,-757.28,0.00010877,2]
[352390807,1739071859671,-500.0,0.00010877,2]
[352390808,1739071859681,-500.0,0.00010877,2]
[352390809,1739071859692,-500.0,0.00010877,2]
[352390810,1739071859703,-572.12,0.00010877,2]
[352390811,1739071859715,-500.0,0.00010877,2]
[352390812,1739071859724,-500.0,0.00010877,2]
[352390813,1739071859733,-526.36,0.00010877,2]
[352390814,1739071859743,-500.0,0.00010877,2]
[352390815,1739071859752,-500.0,0.00010877,2]
[352390816,1739071859762,-538.09,0.00010877,2]
[352390817,1739071859772,-523.98,0.00010877,2]
[352390818,1739071859782,-553.37,0.00010877,2]
[352390819,1739071859791,-500.0,0.00010877,2]
[352390820,1739071859801,-500.0,0.00010877,2]
[352390821,1739071859811,-941.55,0.00010877,2]
[352390822,1739071859820,-1180.69,0.00010877,2]
[352390823,1739071859832,-4828.19,0.00010877,2]
[352390824,1739071859895,-573.85,0.00010877,2]
[352390825,1739071859905,-500.0,0.00010877,2]
[352390826,1739071859915,-500.0,0.00010877,2]
[352390827,1739071859924,-1169.31,0.00010877,2]
[352390828,1739071859934,-500.0,0.00010877,2]
[352390829,1739071859943,-886.11,0.00010877,2]
[352390830,1739071859953,-917.97,0.00010877,2]
[352390831,1739071859963,-2052.96,0.00010877,2]
[352390832,1739071859973,-500.0,0.00010877,2]
[352390833,1739071859984,-500.0,0.00010877,2]
[352390834,1739071859993,-541.12,0.00010877,2]
[352390835,1739071860003,-500.0,0.00010878,2]
[352390836,1739071860013,-500.0,0.00010878,2]
[352390837,1739071860023,-297.5417504,0.00010878,2]
[352390838,1739071860035,-500.0,0.00010878,2]
[352390839,1739071860046,-500.0,0.00010878,2]
[352390840,1739071860056,-500.0,0.00010878,2]
[352390841,1739071860065,-500.0,0.00010878,2]
[352390842,1739071860078,-500.0,0.00010878,2]
[352390843,1739071860087,-500.0,0.00010878,2]
[352390844,1739071860096,-500.0,0.00010878,2]
[352390845,1739071860107,-500.0,0.00010878,2]
[352390846,1739071860116,-530.6,0.00010878,2]
[352390847,1739071860126,-500.0,0.00010878,2]
[352390848,1739071860135,-500.0,0.00010878,2]
[352390849,1739071860144,-500.0,0.00010878,2]
[352390850,1739071860153,-500.0,0.00010878,2]
[352390851,1739071860163,-500.0,0.00010878,2]
[352390852,1739071860172,-500.0,0.00010878,2]
[352390853,1739071860182,-843.72,0.00010878,2]
[352390854,1739071860192,-951.06,0.00010878,2]
[352390855,1739071860202,-500.0,0.00010878,2]
[352390856,1739071860211,-500.0,0.00010878,2]
[352390857,1739071860221,-560.12746915,0.00010878,2]
[352390858,1739071860231,-500.0,0.00010878,2]
[352390859,1739071860240,-500.0,0.00010878,2]
[352390860,1739071860251,-523.63,0.00010878,2]
[352390861,1739071860261,-500.0,0.00010878,2]
[352390862,1739071860271,-599.35,0.00010878,2]
[352390863,1739071860281,-500.0,0.00010878,2]
[352390864,1739071860291,-500.0,0.00010878,2]
[352390865,1739071860300,-575.48,0.00010878,2]
[352390866,1739071860310,-500.0,0.00010878,2]
[352390867,1739071860320,-500.0,0.00010878,2]
[352390868,1739071860332,-557.04,0.00010878,2]
[352390869,1739071860342,-500.0,0.00010878,2]
[352390870,1739071860351,-474.36098145,0.00010878,2]
[352390871,1739071860360,-210.57454007,0.00010878,2]
[352390872,1739071860370,-657.45,0.00010878,2]
[352390873,1739071860381,-400.52735059,0.00010878,2]
[352390874,1739071860400,-553.28,0.00010878,2]
[352390875,1739071860418,-506.47,0.00010878,2]
[352390876,1739071860428,-500.0,0.00010878,2]
[352390877,1739071860437,-500.0,0.00010878,2]
[352390878,1739071860447,-500.0,0.00010878,2]
[352390879,1739071860457,-162.48928721,0.000109,2]
[352390880,1739071860467,-441.0,0.00010904,2]
[352390881,1739071860476,-638.0,0.00010955,2]
[352390882,1739071860486,-1377.914,0.00010955,2]
[352390883,1739071860497,-776.109,0.00010955,2]
[352390884,1739071860507,-2954.0,0.00010955,2]
[352390885,1739071860517,-783.0,0.00010955,2]
[352390886,1739071860526,-539.0,0.00010955,2]
[352390887,1739071860535,-785.161,0.00010955,2]
[352390888,1739071860544,-2023.0,0.00010955,2]
[352390889,1739071860554,-150.0,0.00010955,2]
[352390890,1739071860564,-3912.0,0.00010955,2]
[352390891,1739071860573,-1272.0,0.00010955,2]
[352390892,1739071860588,-150.0,0.00010959,2]
[352390893,1739071860598,-500.97435603,0.0001099,2]
[352390894,1739071860608,-4131.22931574,0.00010999,2]
[352390895,1739071860617,-536.0,0.00011,2]
[352390896,1739071860627,-500.0,0.00011,2]
[352390897,1739071860637,-28901.12801474,0.00011,2]
[352390898,1739071860647,-279473.07652302,0.00011,2]
[352390899,1739071860657,-100287.1907419,0.00011,2]
[352390900,1739071860668,-1578.0,0.00011008,2]
[352390901,1739071860677,-239.72433597,0.00011014,2]
[352390902,1739071860688,-500.0,0.00011014,2]
[352390903,1739071860700,-500.0,0.00011014,2]
[352390904,1739071860710,-289.812615,0.00011014,2]
[352390905,1739071860720,-319.505376,0.00011014,2]
[352390906,1739071860730,-473.78973147,0.00011014,2]
[352390907,1739071860739,-500.0,0.00011014,2]
[352390908,1739071860749,-628.43,0.00011014,2]
[352390909,1739071860759,-1055.42,0.00011014,2]
[352390910,1739071860768,-755.58,0.00011014,2]
[352390911,1739071860778,-776.18,0.00011014,2]
[352390912,1739071860787,-322.06413823,0.00011014,2]
[352390913,1739071860796,-500.0,0.00011014,2]
[352390914,1739071860805,-515.51417002,0.00011014,2]
[352390915,1739071860815,-500.0,0.00011014,2]
[352390916,1739071860826,-610.57,0.00011014,2]
[352390917,1739071860837,-500.0,0.00011014,2]
[352390918,1739071860847,-500.0,0.00011014,2]
[352390919,1739071860856,-500.0,0.00011014,2]
[352390920,1739071860866,-500.0,0.00011014,2]
[352390921,1739071860875,-275.80846405,0.00011014,2]
[352390922,1739071860885,-561.7,0.00011014,2]
[352390923,1739071860896,-676.24,0.00011014,2]
[352390924,1739071860907,-500.0,0.00011014,2]
[352390925,1739071860917,-992.36,0.00011014,2]
[352390926,1739071860927,-757.28,0.00011014,2]
[352390927,1739071860937,-500.0,0.00011014,2]
[352390928,1739071860947,-500.0,0.00011014,2]
[352390929,1739071860956,-500.0,0.00011014,2]
[352390930,1739071860966,-572.12,0.00011014,2]
[352390931,1739071860975,-432.30250249,0.00011014,2]
[352390932,1739071860986,-500.0,0.00011014,2]
[352390933,1739071860996,-526.36,0.00011014,2]
[352390934,1739071861006,-500.0,0.00011014,2]
[352390935,1739071861016,-500.0,0.00011014,2]
[352390936,1739071861030,-538.09,0.00011014,2]
[352390937,1739071861040,-523.98,0.00011014,2]
[352390938,1739071861050,-553.37,0.00011014,2]
[352390939,1739071861060,-500.0,0.00011014,2]
[352390940,1739071861070,-500.0,0.00011014,2]
[352390941,1739071861083,-941.55,0.00011014,2]
[352390942,1739071861092,-1180.69,0.00011014,2]
[352390943,1739071861212,-4828.19,0.00011014,2]
[352390944,1739071861223,-573.85,0.00011014,2]
[352390945,1739071861232,-500.0,0.00011014,2]
[352390946,1739071861243,-500.0,0.00011014,2]
[352390947,1739071861253,-1169.31,0.00011014,2]
[352390948,1739071861264,-500.0,0.00011014,2]
[352390949,1739071861274,-500.0,0.00011014,2]
[352390950,1739071861283,-886.11,0.00011014,2]
[352390951,1739071861294,-917.97,0.00011014,2]
[352390952,1739071861303,-2052.96,0.00011014,2]
[352390953,1739071861313,-500.0,0.00011014,2]
[352390954,1739071861323,-500.0,0.00011014,2]
[352390955,1739071861336,-541.12,0.00011014,2]
[352390956,1739071861345,-500.0,0.00011015,2]
[352390957,1739071861355,-500.0,0.00011015,2]
[352390958,1739071861364,-500.0,0.00011015,2]
[352390959,1739071861373,-604.94507717,0.00011015,2]
[352390960,1739071861383,-500.0,0.00011015,2]
[352390961,1739071861393,-500.0,0.00011015,2]
[352390962,1739071861403,-500.0,0.00011015,2]
[352390963,1739071861412,-500.0,0.00011015,2]
[352390964,1739071861422,-500.0,0.00011015,2]
[352390965,1739071861431,-500.0,0.00011015,2]
[352390966,1739071861442,-530.6,0.00011015,2]
[352390967,1739071861452,-500.0,0.00011015,2]
[352390968,1739071861461,-500.0,0.00011015,2]
[352390969,1739071861471,-500.0,0.00011015,2]
[352390970,1739071861480,-500.0,0.00011015,2]
[352390971,1739071861491,-500.0,0.00011015,2]
[352390972,1739071861501,-500.0,0.00011015,2]
[352390973,1739071861511,-843.72,0.00011015,2]
[352390974,1739071861521,-951.06,0.00011015,2]
[352390975,1739071861531,-500.0,0.00011015,2]
[352390976,1739071861541,-500.0,0.00011015,2]
[352390977,1739071861550,-500.0,0.00011015,2]
[352390978,1739071861561,-500.0,0.00011015,2]
[352390979,1739071861571,-523.63,0.00011015,2]
[352390980,1739071861582,-500.0,0.00011015,2]
[352390981,1739071861592,-599.35,0.00011015,2]
[352390982,1739071861601,-500.0,0.00011015,2]
[352390983,1739071861612,-500.0,0.00011015,2]
[352390984,1739071861622,-575.48,0.00011015,2]
[352390985,1739071861633,-500.0,0.00011015,2]
[352390986,1739071861643,-500.0,0.00011015,2]
[352390987,1739071861652,-557.04,0.00011015,2]
[352390988,1739071861661,-500.0,0.00011015,2]
[352390989,1739071861672,-657.45,0.00011015,2]
[352390990,1739071861683,-553.28,0.00011015,2]
[352390991,1739071861693,-506.47,0.00011015,2]
[352390992,1739071861703,-500.0,0.00011015,2]
[352390993,1739071861714,-500.0,0.00011015,2]
[352390994,1739071861724,-500.0,0.00011015,2]
[352390995,1739071861734,-3374.187,0.00011084,2]
[352390996,1739071861744,-167.647,0.00011084,2]
[352390997,1739071861753,-431.7357272,0.00011087,2]
[352390998,1739071861763,-502.65320577,0.00011099,2]
[352390999,1739071861774,-502.65320575,0.00011099,2]
[352391000,1739071861784,-502.65320575,0.00011099,2]
[352391001,1739071861794,-502.65320575,0.00011099,2]
[352391002,1739071861804,-502.65320575,0.00011099,2]
[352391003,1739071861814,-502.65320575,0.00011099,2]
[352391004,1739071861823,-152.55,0.00011105,2]
[352391005,1739071861835,-500.0,0.00011151,2]
[352391006,1739071861845,-500.0,0.00011151,2]
[352391007,1739071861856,-289.812615,0.00011151,2]
[352391008,1739071861865,-319.505376,0.00011151,2]
[352391009,1739071861875,-500.0,0.00011151,2]
[352391010,1739071861885,-628.43,0.00011151,2]
[352391011,1739071861895,-1055.42,0.00011151,2]
[352391012,1739071861905,-755.58,0.00011151,2]
[352391013,1739071861915,-776.18,0.00011151,2]
[352391014,1739071861925,-500.0,0.00011151,2]
[352391015,1739071861936,-500.0,0.00011151,2]
[352391016,1739071861946,-610.57,0.00011151,2]
[352391017,1739071861956,-500.0,0.00011151,2]
[352391018,1739071861967,-500.0,0.00011151,2]
[352391019,1739071861977,-500.0,0.00011151,2]
[352391020,1739071861987,-500.0,0.00011151,2]
[352391021,1739071861997,-561.7,0.00011151,2]
[352391022,1739071862007,-676.24,0.00011151,2]
[352391023,1739071862017,-500.0,0.00011151,2]
[352391024,1739071862027,-992.36,0.00011151,2]
[352391025,1739071862046,-757.28,0.00011151,2]
[352391026,1739071862058,-500.0,0.00011151,2]
[352391027,1739071862068,-500.0,0.00011151,2]
[352391028,1739071862079,-500.0,0.00011151,2]
[352391029,1739071862089,-572.12,0.00011151,2]
[352391030,1739071862100,-500.0,0.00011151,2]
[352391031,1739071862111,-526.36,0.00011151,2]
[352391032,1739071862123,-500.0,0.00011151,2]
[352391033,1739071862133,-500.0,0.00011151,2]
[352391034,1739071862143,-538.09,0.00011151,2]
[352391035,1739071862153,-523.98,0.00011151,2]
[352391036,1739071862163,-553.37,0.00011151,2]
[352391037,1739071862173,-500.0,0.00011151,2]
[352391038,1739071862183,-500.0,0.00011151,2]
[352391039,1739071862192,-941.55,0.00011151,2]
[352391040,1739071862202,-1180.69,0.00011151,2]
[352391041,1739071862212,-4828.19,0.00011151,2]
[352391042,1739071862221,-573.85,0.00011151,2]
[352391043,1739071862231,-500.0,0.00011151,2]
[352391044,1739071862241,-500.0,0.00011151,2]
[352391045,1739071862250,-1169.31,0.00011151,2]
[352391046,1739071862260,-500.0,0.00011151,2]
[352391047,1739071862270,-886.11,0.00011151,2]
[352391048,1739071862280,-917.97,0.00011151,2]
[352391049,1739071862290,-2052.96,0.00011151,2]
[352391050,1739071862299,-500.0,0.00011151,2]
[352391051,1739071862308,-500.0,0.00011151,2]
[352391052,1739071862318,-541.12,0.00011151,2]
[352391053,1739071862328,-500.0,0.00011152,2]
[352391054,1739071862338,-500.0,0.00011152,2]
[352391055,1739071862348,-204.0,0.00011152,2]
[352391056,1739071862358,-500.0,0.00011152,2]
[352391057,1739071862368,-168.98200244,0.00011152,2]
[352391058,1739071862378,-500.0,0.00011152,2]
[352391059,1739071862388,-500.0,0.00011152,2]
[352391060,1739071862398,-500.0,0.00011152,2]
[352391061,1739071862407,-500.0,0.00011152,2]
[352391062,1739071862417,-530.6,0.00011152,2]
[352391063,1739071862427,-500.0,0.00011152,2]
[352391064,1739071862436,-500.0,0.00011152,2]
[352391065,1739071862446,-500.0,0.00011152,2]
[352391066,1739071862456,-500.0,0.00011152,2]
[352391067,1739071862465,-500.0,0.00011152,2]
[352391068,1739071862476,-500.0,0.00011152,2]
[352391069,1739071862485,-843.72,0.00011152,2]
[352391070,1739071862496,-951.06,0.00011152,2]
[352391071,1739071862506,-500.0,0.00011152,2]
[352391072,1739071862516,-500.0,0.00011152,2]
[352391073,1739071862527,-500.0,0.00011152,2]
[352391074,1739071862537,-500.0,0.00011152,2]
[352391075,1739071862546,-523.63,0.00011152,2]
[352391076,1739071862556,-500.0,0.00011152,2]
[352391077,1739071862566,-500.0,0.00011152,2]
[352391078,1739071862576,-470.36567178,0.00011152,2]
[352391079,1739071862586,-575.48,0.00011152,2]
[352391080,1739071862596,-500.0,0.00011152,2]
[352391081,1739071862606,-500.0,0.00011152,2]
[352391082,1739071862615,-557.04,0.00011152,2]
[352391083,1739071862624,-500.0,0.00011152,2]
[352391084,1739071862634,-657.45,0.00011152,2]
[352391085,1739071862644,-553.28,0.00011152,2]
[352391086,1739071862654,-506.47,0.00011152,2]
[352391087,1739071862663,-500.0,0.00011152,2]
[352391088,1739071862673,-500.0,0.00011152,2]
[352391089,1739071862682,-500.0,0.00011152,2]
[352391090,1739071862692,-500.0,0.00011179,2]
[352391091,1739071862702,-172995.69738697,0.0001118,2]
[352391092,1739071862711,-214.01445394,0.00011188,2]
[352391093,1739071862721,-2754.14341481,0.00011188,2]
[352391094,1739071862731,-7000.0,0.000112,2]
[352391095,1739071862743,-113731.19123388,0.000112,2]
[352391096,1739071862752,-1357.0,0.000112,2]
[352391097,1739071862763,-3662.2882953,0.0001128,3]
[352391098,1739071862772,-2199945.5759394,0.0001128,3]
[352391099,1739071863238,-500.0,9.37e-05,2]
[352391100,1739071863248,-501.15265856,9.371e-05,2]
[352391101,1739071863258,-500.0,9.507e-05,2]
[352391102,1739071863269,-500.0,9.644e-05,2]
[352391103,1739071863280,-500.0,9.781e-05,2]
[352391104,1739071863289,-500.0,9.918e-05,2]
[352391105,1739071863299,-422.24224088,0.00010604,2]
[352391106,1739071863310,-502.65320575,0.00011099,2]
[352391107,1739071863320,-47480.14206915,0.0001128,3]
[352391108,1739071863358,-500.0,9.371e-05,2]
[352391109,1739071863368,-3692.66971078,0.0001128,3]
[352391110,1739071863390,-435.00996,0.00010055,2]
[352391111,1739071863407,-64.99004,0.00010055,2]
[352391112,1739071863417,-359.4220089,0.0001128,3]
[352391113,1739071863433,-3978.65950358,0.0001128,3]
[352391114,1739071863444,-397.20500002,0.0001128,3]
[352391115,1739071863911,-500.0,9.37e-05,2]
[352391116,1739071863921,-111.83559036,9.371e-05,2]
[352391118,1739071974719,151.0,0.0002,120]
[352391119,1739072029598,151.0,0.0002,120]
[352391142,1739073035981,-765.62,8.219e-05,2]
[352391143,1739073035990,-2641.0775,8.699e-05,2]
[352391144,1739073035999,-300.0,8.835e-05,2]
[352391145,1739073036012,-1708.9015,8.836e-05,2]
[352391146,1739073036021,-21531.0226,8.836e-05,2]
[352391147,1739073036030,-608.9605,8.836e-05,2]
[352391148,1739073036039,-150.0,8.972e-05,2]
[352391149,1739073036050,-18253.9459,8.973e-05,2]
[352391150,1739073036060,-5000.0,8.973e-05,2]
[352391151,1739073036069,-1000.0,9.263e-05,2]
[352391152,1739073036078,-186.61,9.264e-05,2]
[352391153,1739073036087,-397.17,9.283e-05,2]
[352391154,1739073036096,-167.79,9.373e-05,2]
[352391155,1739073036106,-507.0228435,9.506e-05,2]
[352391156,1739073036115,-500.0,9.506e-05,2]
[352391157,1739073036125,-500.0,9.506e-05,2]
[352391158,1739073036134,-500.0,9.506e-05,2]
[352391159,1739073036143,-500.0,9.506e-05,2]
[352391160,1739073036152,-500.0,9.506e-05,2]
[352391161,1739073036161,-500.0,9.506e-05,2]
[352391162,1739073036170,-500.0,9.506e-05,2]
[352391163,1739073036179,-500.0,9.506e-05,2]
[352391164,1739073036188,-500.0,9.506e-05,2]
[352391165,1739073036198,-501.45374484,9.506e-05,2]
[352391166,1739073036208,-502.64198899,9.506e-05,2]
[352391167,1739073036217,-500.0,9.506e-05,2]
[352391168,1739073036227,-500.0,9.506e-05,2]
[352391169,1739073036237,-500.0,9.506e-05,2]
[352391170,1739073036247,-500.0,9.506e-05,2]
[352391171,1739073036257,-500.0,9.506e-05,2]
[352391172,1739073036266,-500.0,9.506e-05,2]
[352391173,1739073036276,-500.0,9.506e-05,2]
[352391174,1739073036285,-500.0,9.506e-05,2]
[352391175,1739073036294,-504.85737903,9.506e-05,2]
[352391176,1739073036306,-504.57844999,9.506e-05,2]
[352391177,1739073036316,-500.0,9.506e-05,2]
[352391178,1739073036325,-500.0,9.506e-05,2]
[352391179,1739073036334,-500.0,9.506e-05,2]
[352391180,1739073036343,-500.0,9.506e-05,2]
[352391181,1739073036352,-500.0,9.506e-05,2]
[352391182,1739073036361,-500.0,9.506e-05,2]
[352391183,1739073036370,-500.0,9.506e-05,2]
[352391184,1739073036380,-501.27276299,9.506e-05,2]
[352391185,1739073036389,-500.0,9.506e-05,2]
[352391186,1739073036398,-500.0,9.506e-05,2]
[352391187,1739073036408,-501.44636197,9.506e-05,2]
[352391188,1739073036420,-500.0,9.506e-05,2]
[352391189,1739073036429,-500.0,9.506e-05,2]
[352391190,1739073036438,-500.0,9.506e-05,2]
[352391191,1739073036447,-255.88952049,9.506e-05,2]
[352391192,1739073036456,-166.63524268,9.506e-05,2]
[352391193,1739073036466,-350.72709668,9.506e-05,2]
[352391194,1739073036475,-500.0,9.506e-05,2]
[352391195,1739073036484,-500.0,9.506e-05,2]
[352391196,1739073036495,-525.89,9.506e-05,2]
[352391197,1739073036504,-500.0,9.506e-05,2]
[352391198,1739073036513,-500.0,9.506e-05,2]
[352391199,1739073036522,-500.20908108,9.506e-05,2]
[352391200,1739073036531,-500.0,9.506e-05,2]
[352391201,1739073036540,-497.0,9.506e-05,2]
[352391202,1739073036549,-501.8990171,9.506e-05,2]
[352391203,1739073036558,-604.94507717,9.506e-05,2]
[352391204,1739073036567,-500.0,9.506e-05,2]
[352391205,1739073036576,-500.0,9.506e-05,2]
[352391206,1739073036585,-500.0,9.506e-05,2]
[352391207,1739073036594,-500.0,9.506e-05,2]
[352391208,1739073036603,-500.0,9.506e-05,2]
[352391209,1739073036612,-500.0,9.506e-05,2]
[352391210,1739073036621,-505.39630394,9.506e-05,2]
[352391211,1739073036630,-500.0,9.506e-05,2]
[352391212,1739073036639,-634.98574915,9.506e-05,2]
[352391213,1739073036648,-500.0,9.506e-05,2]
[352391214,1739073036657,-500.0,9.506e-05,2]
[352391215,1739073036667,-500.0,9.506e-05,2]
[352391216,1739073036677,-500.0,9.506e-05,2]
[352391217,1739073036686,-500.0,9.506e-05,2]
[352391218,1739073036696,-500.0,9.506e-05,2]
[352391219,1739073036705,-500.0,9.506e-05,2]
[352391220,1739073036714,-500.0,9.506e-05,2]
[352391221,1739073036723,-308.94471896,9.506e-05,2]
[352391222,1739073036732,-500.0,9.506e-05,2]
[352391223,1739073036742,-500.0,9.506e-05,2]
[352391224,1739073036751,-500.0,9.506e-05,2]
[352391225,1739073036760,-505.04958734,9.506e-05,2]
[352391226,1739073036769,-500.0,9.506e-05,2]
[352391227,1739073036778,-500.0,9.506e-05,2]
[352391228,1739073036787,-500.0,9.506e-05,2]
[352391229,1739073036796,-500.0,9.506e-05,2]
[352391230,1739073036806,-500.0,9.562e-05,2]
[352391231,1739073036815,-384.2653326,9.643e-05,2]
[352391232,1739073036824,-168.98200244,9.643e-05,2]
[352391233,1739073036833,-500.0,9.643e-05,2]
[352391234,1739073036842,-420.0,9.718e-05,2]
[352391235,1739073036851,-196.57438512,9.78e-05,2]
[352391236,1739073036860,-255.0,9.869e-05,2]
[352391237,1739073036869,-490.75461084,0.00010055,2]
[352391238,1739073036878,-500.0,0.00010055,2]
[352391239,1739073036887,-500.0,0.00010055,2]